fUSD/lending_fUSD_20250609
["ID","MTS","AMOUNT","RATE_DAILY","PERIOD"]
[365117843,1749474638350,-500.0,0.00019006,2]
[365117845,1749474638360,-500.0,0.00019006,2]
[365117847,1749474638370,-500.0,0.00019006,2]
[365117849,1749474638381,-500.0,0.00019006,2]
[365117851,1749474638390,-500.0,0.00019006,2]
[365117853,1749474638400,-300.0,0.00019006,2]
[365117855,1749474638410,-300.0,0.00019006,2]
[365117857,1749474638420,-300.0,0.00019006,2]
[365117859,1749474638430,-300.0,0.00019006,2]
[365117861,1749474638439,-300.0,0.00019006,2]
[365117863,1749474638449,-300.0,0.00019006,2]
[365117865,1749474638459,-300.0,0.00019006,2]
[365117867,1749474638468,-300.0,0.00019006,2]
[365117869,1749474638478,-300.0,0.00019006,2]
[365117871,1749474638487,-300.0,0.00019006,2]
[365117873,1749474638497,-300.0,0.00019006,2]
[365117875,1749474638507,-300.0,0.00019006,2]
[365117877,1749474638517,-300.0,0.00019006,2]
[365117879,1749474638527,-300.0,0.00019006,2]
[365117881,1749474638536,-300.0,0.00019006,2]
[365117883,1749474638546,-300.0,0.00019006,2]
[365117885,1749474638557,-23900.0,0.00019017,2]
[365117887,1749474638567,-1681.52,0.00019018,2]
[365117889,1749474638577,-250.0,0.00019026,2]
[365117891,1749474638587,-2030.296672,0.00019061,2]
[365117893,1749474638596,-212.59809898,0.000191,2]
[365117895,1749474638606,-2105.41764886,0.00019116,2]
[365117897,1749474638616,-1239.54681882,0.00019171,2]
[365117904,1749474638677,-943.77128305,0.00019171,2]
[365117906,1749474638686,-151.0,0.00019178,2]
[365117908,1749474638696,-267.07,0.00019178,2]
[365117910,1749474638707,-1460.92,0.00019205,30]
[365117912,1749474638718,-2264.10087164,0.00019226,2]
[365117914,1749474638728,-1797.98,0.00019276,2]
[365117916,1749474638737,-173.36,0.00019277,2]
[365117918,1749474638747,-1698.28035333,0.00019281,2]
[365117922,1749474638777,-649.59225056,0.00019281,2]
[365117924,1749474638787,-212.59809898,0.000193,2]
[365117926,1749474638797,-2434.74389024,0.00019336,2]
[365117928,1749474638807,-1447.17202235,0.00019391,2]
[365117930,1749474638816,-212.59809898,0.000195,2]
[365117932,1749474638826,-205.0,0.00019546,4]
[365117934,1749474638835,-212.59809898,0.000197,2]
[365117936,1749474638844,-156.587,0.00019726,2]
[365117938,1749474638853,-150.93284327,0.00019735,2]
[365117940,1749474638862,-150.0,0.00019791,2]
[365117942,1749474638871,-150.0,0.00019805,2]
[365117944,1749474638881,-150.0,0.00019826,2]
[365117946,1749474638890,-500.0,0.00019839,2]
[365117948,1749474638899,-500.0,0.0001984,2]
[365117950,1749474638908,-500.0,0.0001984,2]
[365117952,1749474638917,-200.0,0.0001984,2]
[365117954,1749474638926,-150.0,0.00019848,2]
[365117956,1749474638936,-250.0,0.00019852,2]
[365117958,1749474638945,-250.0,0.00019852,2]
[365117960,1749474638955,-150.0,0.00019872,2]
[365117961,1749474638964,-500.0,0.0001989,2]
[365117963,1749474638973,-1833.216,0.00019896,2]
[365117965,1749474638983,-3272.9104,0.00019896,2]
[365117968,1749474638994,-1000.0,0.00019896,2]
[365117970,1749474639004,-155.74283835,0.00019896,2]
[365117972,1749474639013,-3447.39335095,0.00019896,2]
[365117974,1749474639023,-3447.39335086,0.00019896,2]
[365117976,1749474639032,-3447.39335086,0.00019897,2]
[365117978,1749474639042,-3447.39335086,0.00019897,2]
[365117980,1749474639053,-3447.39335086,0.00019898,2]
[365117981,1749474639063,-3447.39335086,0.00019898,2]
[365117983,1749474639072,-3447.39335086,0.00019899,2]
[365117985,1749474639082,-3447.39335086,0.00019899,2]
[365117987,1749474639091,-3447.39335086,0.000199,2]
[365117989,1749474639101,-468.365,0.000199,2]
[365117991,1749474639110,-155.74283834,0.000199,2]
[365117993,1749474639120,-165.78540173,0.000199,2]
[365117995,1749474639130,-1753.67244462,0.000199,2]
[365117997,1749474639139,-212.59809898,0.000199,2]
[365117999,1749474639149,-15783.5346964,0.000199,2]
[365118001,1749474639157,-3447.39335086,0.000199,2]
[365118032,1749474639424,-300.0,0.00019936,2]
[365118034,1749474639434,-1915.459,0.00019952,2]
[365118036,1749474639443,-176.507,0.00019954,2]
[365118037,1749474639452,-150.0,0.00019965,2]
[365118039,1749474639461,-150.0,0.00019965,2]
[365118040,1749474639470,-500.0,0.00019965,2]
[365118042,1749474639479,-150.0,0.00019965,2]
[365118044,1749474639488,-150.0,0.00019965,2]
[365118046,1749474639497,-500.0,0.00019965,2]
[365118048,1749474639506,-150.0,0.00019965,2]
[365118050,1749474639515,-150.0,0.00019965,2]
[365118052,1749474639525,-150.0,0.00019965,2]
[365118054,1749474639534,-500.0,0.00019965,2]
[365118056,1749474639543,-299.22765739,0.00019965,2]
[365118058,1749474639552,-150.0,0.00019965,2]
[365118060,1749474639561,-500.0,0.00019965,2]
[365118062,1749474639571,-150.0,0.00019965,2]
[365118064,1749474639581,-300.0,0.0001997,2]
[365118066,1749474639590,-500.0,0.00019973,2]
[365118068,1749474639599,-500.0,0.00019973,2]
[365118070,1749474639608,-501.11496085,0.00019973,2]
[365118071,1749474639617,-508.46601388,0.00019973,2]
[365118073,1749474639626,-500.0,0.00019973,2]
[365118075,1749474639635,-500.0,0.00019973,2]
[365118077,1749474639645,-500.0,0.00019973,2]
[365118079,1749474639658,-548.56894287,0.00019973,2]
[365118081,1749474639668,-500.0,0.00019973,2]
[365118083,1749474639677,-500.0,0.00019973,2]
[365118085,1749474639686,-500.0,0.00019973,2]
[365118087,1749474639695,-500.0,0.00019973,2]
[365118089,1749474639705,-500.0,0.00019973,2]
[365118091,1749474639715,-500.0,0.00019973,2]
[365118093,1749474639724,-500.0,0.00019973,2]
[365118095,1749474639734,-581.337796,0.0001998,2]
[365118097,1749474639744,-215.216509,0.0001998,2]
[365118099,1749474639754,-150.0,0.00019988,2]
[365118101,1749474639763,-150.0,0.00019989,2]
[365118103,1749474639772,-213.47102298,0.0001999,2]
[365118105,1749474639781,-158.31,0.0001999,2]
[365118107,1749474639790,-158.31,0.0001999,2]
[365118109,1749474639801,-150.0,0.00019992,2]
[365118111,1749474639810,-284.31191082,0.00019992,2]
[365118113,1749474639820,-500.0,0.00019992,2]
[365118115,1749474639829,-150.0,0.00019992,2]
[365118117,1749474639838,-150.0,0.00019992,2]
[365118118,1749474639848,-500.0,0.00019992,2]
[365118121,1749474639858,-150.0,0.00019992,2]
[365118123,1749474639868,-150.0,0.00019992,2]
[365118125,1749474639877,-500.0,0.00019992,2]
[365118127,1749474639887,-150.0,0.00019992,2]
[365118128,1749474639898,-500.0,0.00019992,2]
[365118130,1749474639907,-199.27423995,0.00019995,2]
[365118132,1749474639917,-609.46625623,0.00019995,2]
[365118134,1749474639926,-500.0,0.00019995,2]
[365118136,1749474639935,-400.0,0.00019995,2]
[365118138,1749474639945,-500.0,0.00019995,2]
[365118140,1749474639955,-500.0,0.00019995,2]
[365118142,1749474639963,-521.62637936,0.00019995,2]
[365118144,1749474639973,-500.0,0.00019995,2]
[365118146,1749474639982,-500.0,0.00019995,2]
[365118148,1749474639992,-500.0,0.00019995,2]
[365118150,1749474640002,-312.82395924,0.00019995,2]
[365118152,1749474640011,-500.0,0.00019995,2]
[365118154,1749474640021,-500.0,0.00019995,2]
[365118156,1749474640031,-1537.2989148,0.00019996,2]
[365118159,1749474640040,-379.032682,0.00019996,2]
[365118161,1749474640049,-3269.1634251,0.00019996,2]
[365118163,1749474640059,-8026.9055773,0.00019996,2]
[365118165,1749474640069,-686.6374771,0.00019996,2]
[365118166,1749474640078,-141156.1170432,0.00019996,2]
[365118168,1749474640088,-9678.0125445,0.00019996,2]
[365118170,1749474640098,-300.0,0.00019999,2]
[365118171,1749474640108,-666.0,0.00019999,2]
[365118173,1749474640118,-300.0,0.00019999,2]
[365118174,1749474640128,-669.40882155,0.00019999,2]
[365118175,1749474640137,-300.0,0.00019999,2]
[365118176,1749474640147,-2000.0,0.00019999,2]
[365118177,1749474640157,-2000.0,0.00019999,2]
[365118178,1749474640167,-2000.0,0.00019999,2]
[365118179,1749474640177,-2000.0,0.00019999,2]
[365118180,1749474640186,-1464.2548,0.00019999,2]
[365118181,1749474640196,-150.0,0.00019999,2]
[365118182,1749474640206,-500.0,0.00019999,2]
[365118185,1749474640215,-500.0,0.00019999,2]
[365118187,1749474640224,-500.0,0.00019999,2]
[365118189,1749474640233,-500.0,0.00019999,2]
[365118191,1749474640243,-500.0,0.00019999,2]
[365118193,1749474640253,-500.0,0.00019999,2]
[365118194,1749474640263,-500.0,0.00019999,2]
[365118197,1749474640272,-500.0,0.00019999,2]
[365118199,1749474640282,-500.0,0.00019999,2]
[365118200,1749474640291,-500.0,0.00019999,2]
[365118202,1749474640301,-500.0,0.00019999,2]
[365118204,1749474640311,-648.58683407,0.00019999,2]
[365118206,1749474640320,-150.0,0.00019999,2]
[365118208,1749474640330,-553.21,0.00019999,2]
[365118210,1749474640339,-500.0,0.00019999,2]
[365118212,1749474640350,-500.0,0.00019999,2]
[365118214,1749474640359,-500.0,0.00019999,2]
[365118216,1749474640370,-500.0,0.00019999,2]
[365118218,1749474640379,-500.0,0.00019999,2]
[365118220,1749474640388,-500.0,0.00019999,2]
[365118222,1749474640398,-500.0,0.00019999,2]
[365118224,1749474640409,-500.0,0.00019999,2]
[365118226,1749474640418,-500.0,0.00019999,2]
[365118228,1749474640429,-500.0,0.00019999,2]
[365118230,1749474640438,-500.0,0.00019999,2]
[365118232,1749474640447,-500.0,0.00019999,2]
[365118234,1749474640456,-252.04,0.00019999,2]
[365118236,1749474640466,-833.29909032,0.0002,3]
[365118238,1749474640475,-14942.03450699,0.0002,3]
[365118240,1749474640484,-457166.79993684,0.0002,3]
[365118242,1749474640493,-5586853.31715747,0.0002,2]
[365118244,1749474640508,-1692.3255208,0.0002,2]
[365118280,1749474640863,-1420.71900848,0.0002,2]
[365118282,1749474640875,-1139.58085009,0.0002,2]
[365118291,1749474640958,-7871.7882867,0.0002,2]
[365118293,1749474640970,-26334.00000001,0.0002,2]
[365118296,1749474640981,-3409.17246,0.0002,2]
[365118301,1749474641023,-233956.22927896,0.0002,2]
[365118303,1749474641036,-8716.09497501,0.0002,2]
[365118320,1749474641195,-931.69609784,0.0002,2]
[365118527,1749474643311,-12921.19806,0.0002,2]
[365118534,1749474643369,-498084.92154961,0.0002,2]
[365118536,1749474643380,-1591.71130002,0.0002,2]
[365118553,1749474643537,-452.48871235,0.0002,2]
[365118832,1749474646353,-64451.74281825,0.0002,2]
[365118843,1749474646444,-30478.13293534,0.0002,2]
[365118863,1749474646631,-957.28813669,0.0002,2]
[365119910,1749474659359,1442.0,0.0002465,120]
[365119912,1749474719388,972.0,0.0002465,120]
[365119913,1749474737829,594.0,0.00024658,120]
[365119916,1749474760928,591.73,0.00013699,2]
[365119918,1749474779733,642.0,0.0002465,120]
[365119919,1749474839081,1623.0,0.0002465,120]
[365119921,1749474848016,1618.18,0.00017106,2]
[365119923,1749475147875,500.0,0.0002465,120]
[365119924,1749475154495,500.0,0.0002465,120]
[365119925,1749475161505,500.0,0.0002465,120]
[365119926,1749475168101,500.0,0.0002465,120]
[365119927,1749475237674,500.0,0.0002465,120]
[365119928,1749475249121,500.0,0.0002465,120]
[365119930,1749475255627,500.0,0.0002465,120]
[365119931,1749475263070,500.0,0.0002465,120]
[365119932,1749475387981,946.5,5.5e-07,2]
[365119933,1749475455279,1000.0,0.0002465,120]
[365119935,1749475528100,433.82532488,0.00023,120]
[365119936,1749475532411,259.02454706,0.0002,120]
[365119937,1749475556389,1979.35934646,0.00017,120]
[365119939,1749475632153,665.9455737,0.0002301,120]
[365119941,1749475673732,3663.95669345,0.0002465,120]
[365119942,1749475680187,1938.0,0.0002465,120]
[365119943,1749475722236,512.33470717,0.0001,120]
[365119944,1749475735386,755.92,0.000246,120]
[365119945,1749475740256,824.0,0.0002465,120]
[365119957,1749475798314,500.0,0.000246,120]
[365119960,1749475811762,206.0,0.00017044,2]
[365119982,1749475831475,-663.86994497,0.00017899,2]
[365119984,1749475831487,-178.49468254,0.00017899,2]
[365119986,1749475831497,-1247.06519492,0.00017908,2]
[365119990,1749475831537,-2627.28484452,0.00017908,2]
[365119991,1749475831549,-465.90982256,0.00017908,2]
[365119992,1749475831559,-299.6,0.00017999,2]
[365119993,1749475831569,-1200.0,0.00017999,2]
[365119994,1749475831581,-300.0,0.00017999,2]
[365119995,1749475831591,-8039.66585313,0.00018,2]
[365119996,1749475831603,-4184.511012,0.00018,2]
[365119997,1749475831614,-6614.97526,0.00018,2]
[365119998,1749475831627,-1366.36535,0.00018,2]
[365119999,1749475831638,-398.0,0.00018,2]
[365120000,1749475831650,-5210.12835463,0.00018,2]
[365120001,1749475831662,-773.07819536,0.00018,2]
[365120002,1749475831682,-7757.16993726,0.00018,2]
[365120003,1749475831693,-777.97,0.00018416,2]
[365120004,1749475831703,-3226.14,0.00018528,2]
[365120005,1749475831712,-150.0,0.00018558,2]
[365120006,1749475831722,-3445.36,0.00018596,2]
[365120007,1749475831731,-442.92,0.00018682,2]
[365120008,1749475831741,-206.0,0.00018696,4]
[365120009,1749475831751,-250.0,0.00018719,2]
[365120010,1749475831761,-300.0,0.00018776,2]
[365120011,1749475831770,-200.0,0.00018778,2]
[365120012,1749475831781,-15160.44,0.00018779,2]
[365120013,1749475831791,-250.0,0.0001887,2]
[365120014,1749475831800,-220.63211944,0.000189,2]
[365120015,1749475831810,-164.52,0.00018965,2]
[365120016,1749475831820,-526.40892813,0.00018998,2]
[365120017,1749475831831,-500.0,0.00018998,2]
[365120018,1749475831840,-500.0,0.00018998,2]
[365120020,1749475831850,-521.43529771,0.00018998,2]
[365120022,1749475831860,-500.0,0.00018998,2]
[365120024,1749475831870,-500.0,0.00018998,2]
[365120026,1749475831880,-500.0,0.00018998,2]
[365120028,1749475831890,-500.0,0.00018998,2]
[365120030,1749475831900,-500.0,0.00018998,2]
[365120033,1749475831910,-30.01171609,0.00018998,2]
[365120035,1749475831922,-319.98828391,0.00018998,2]
[365120038,1749475831931,-1402.81171609,0.00018998,2]
[365120041,1749475831942,-2585.13,0.00018998,2]
[365120045,1749475831966,-2068.88483155,0.00018998,2]
[365120048,1749475831989,-490.5,0.00018998,2]
[365120364,1749475837453,-5927.55695923,0.00018998,2]
[365120365,1749475837462,-5830.73575193,0.00018999,2]
[365120366,1749475837473,-295.17759529,0.00018999,2]
[365120367,1749475837561,-2761.66652601,0.00018999,2]
[365120368,1749475837626,-1879.59148705,0.00018999,2]
[365120369,1749475837685,-451.15504761,0.00018999,2]
[365120370,1749475837742,-2401.79850295,0.00018999,2]
[365120371,1749475837801,-10279.87508916,0.00018999,2]
[365120372,1749475837811,-1000.0,0.00018999,2]
[365120373,1749475837820,-151.0,0.00018999,2]
[365120374,1749475837829,-1957.856,0.00018999,2]
[365120375,1749475837839,-500.0,0.00018999,2]
[365120376,1749475837848,-500.0,0.00018999,2]
[365120377,1749475837857,-500.0,0.00018999,2]
[365120378,1749475837867,-500.0,0.00018999,2]
[365120379,1749475837877,-500.0,0.00018999,2]
[365120380,1749475837887,-500.0,0.00018999,2]
[365120381,1749475837896,-500.0,0.00018999,2]
[365120382,1749475837906,-500.0,0.00018999,2]
[365120383,1749475837916,-500.0,0.00018999,2]
[365120384,1749475837925,-500.0,0.00018999,2]
[365120385,1749475837935,-500.0,0.00018999,2]
[365120386,1749475837945,-500.0,0.00018999,2]
[365120387,1749475837954,-500.0,0.00018999,2]
[365120388,1749475837963,-500.0,0.00018999,2]
[365120389,1749475837972,-500.0,0.00018999,2]
[365120391,1749475837982,-500.0,0.00018999,2]
[365120393,1749475837991,-500.0,0.00018999,2]
[365120395,1749475837999,-500.0,0.00018999,2]
[365120397,1749475838009,-500.0,0.00018999,2]
[365120399,1749475838018,-500.0,0.00018999,2]
[365120401,1749475838027,-668.65185757,0.00018999,2]
[365120403,1749475838036,-500.0,0.00018999,2]
[365120404,1749475838048,-500.0,0.00018999,2]
[365120405,1749475838057,-500.0,0.00018999,2]
[365120406,1749475838066,-500.0,0.00018999,2]
[365120407,1749475838075,-500.0,0.00018999,2]
[365120408,1749475838085,-500.0,0.00018999,2]
[365120409,1749475838094,-500.0,0.00018999,2]
[365120410,1749475838103,-500.0,0.00018999,2]
[365120411,1749475838112,-500.0,0.00018999,2]
[365120413,1749475838123,-500.0,0.00018999,2]
[365120414,1749475838133,-500.0,0.00018999,2]
[365120416,1749475838142,-500.0,0.00018999,2]
[365120418,1749475838151,-500.0,0.00018999,2]
[365120420,1749475838161,-500.0,0.00018999,2]
[365120421,1749475838171,-500.0,0.00018999,2]
[365120422,1749475838180,-500.0,0.00018999,2]
[365120423,1749475838189,-500.0,0.00018999,2]
[365120424,1749475838199,-500.0,0.00018999,2]
[365120425,1749475838209,-500.0,0.00018999,2]
[365120426,1749475838219,-500.0,0.00018999,2]
[365120427,1749475838229,-500.0,0.00018999,2]
[365120428,1749475838239,-207.4,0.00018999,2]
[365120429,1749475838248,-284.31545951,0.00018999,2]
[365120430,1749475838258,-250.0,0.00019,2]
[365120431,1749475838268,-500.0,0.00019,2]
[365120432,1749475838278,-500.0,0.00019,2]
[365120433,1749475838288,-205.14843759,0.00019,2]
[365120434,1749475838297,-366.37262969,0.00019,2]
[365120435,1749475838307,-500.0,0.00019,2]
[365120436,1749475838316,-500.0,0.00019,2]
[365120437,1749475838326,-500.0,0.00019,2]
[365120438,1749475838336,-167.35,0.00019013,2]
[365120439,1749475838345,-7843.87,0.00019015,2]
[365120440,1749475838355,-1000.0,0.00019018,2]
[365120441,1749475838365,-590.0,0.00019051,2]
[365120442,1749475838375,-2030.296672,0.00019054,2]
[365120443,1749475838384,-2105.41764886,0.00019109,2]
[365120444,1749475838394,-2183.31810187,0.00019164,2]
[365120445,1749475838404,-298.30954872,0.00019178,2]
[365120446,1749475838413,-635.75102611,0.00019178,2]
[365120447,1749475838423,-208.87897389,0.00019178,2]
[365120448,1749475838432,-151.0,0.00019178,2]
[365120449,1749475838442,-255.41,0.00019178,2]
[365120450,1749475838451,-1278.3,0.00019205,30]
[365120451,1749475838460,-2264.10087164,0.00019219,2]
[365120452,1749475838469,-2347.87260389,0.00019274,2]
[365120453,1749475838479,-2434.74389024,0.00019329,2]
[365120454,1749475838489,-1618.18,0.0001937,2]
[365120455,1749475838498,-2524.82941417,0.00019384,2]
[365120456,1749475838507,-591.16218934,0.00019439,2]
[365120457,1749475838516,-1000.0,0.00019548,2]
[365120458,1749475838525,-1000.0,0.00019548,2]
[365120459,1749475838534,-1009.7920265,0.00019548,2]
[365120460,1749475838542,-1000.0,0.00019548,2]
[365120461,1749475838551,-1000.0,0.00019548,2]
[365120462,1749475838560,-523.204016,0.00019599,2]
[365120463,1749475838569,-420.0,0.00019639,2]
[365120464,1749475838578,-250.0,0.00019639,2]
[365120465,1749475838591,-156.587,0.00019726,2]
[365120466,1749475838600,-1680.0,0.00019735,2]
[365120467,1749475838609,-250.0,0.00019738,2]
[365120468,1749475838618,-172.0,0.00019757,2]
[365120469,1749475838627,-150.0,0.00019769,2]
[365120470,1749475838637,-150.0,0.00019785,2]
[365120471,1749475838645,-150.0,0.00019785,2]
[365120472,1749475838654,-993.14918681,0.00019796,2]
[365120473,1749475838663,-6301.53898542,0.00019797,2]
[365120474,1749475838672,-700.0,0.000198,2]
[365120475,1749475838681,-6301.5389854,0.00019808,2]
[365120476,1749475838690,-6301.5389854,0.0001982,2]
[365120477,1749475838699,-225.0,0.00019822,2]
[365120478,1749475838707,-6301.5389854,0.00019831,2]
[365120479,1749475838715,-500.0,0.0001984,2]
[365120480,1749475838723,-200.0,0.0001984,2]
[365120481,1749475838732,-6301.5389854,0.00019843,2]
[365120482,1749475838741,-6301.5389854,0.00019854,2]
[365120483,1749475838750,-500.0,0.00019863,2]
[365120484,1749475838759,-6301.5389854,0.00019866,2]
[365120485,1749475838769,-500.0,0.00019876,2]
[365120486,1749475838778,-242.5202341,0.00019876,2]
[365120487,1749475838787,-433.38860157,0.00019876,2]
[365120488,1749475838796,-191.63432023,0.00019876,2]
[365120489,1749475838806,-500.0,0.00019876,2]
[365120490,1749475838815,-500.0,0.00019876,2]
[365120491,1749475838824,-500.0,0.00019876,2]
[365120492,1749475838835,-500.0,0.00019876,2]
[365120493,1749475838844,-537.66408379,0.00019876,2]
[365120494,1749475838853,-500.0,0.00019876,2]
[365120495,1749475838861,-162.22000262,0.00019876,2]
[365120496,1749475838870,-500.0,0.00019876,2]
[365120497,1749475838878,-500.0,0.00019876,2]
[365120498,1749475838887,-500.0,0.00019876,2]
[365120499,1749475838895,-500.0,0.00019876,2]
[365120500,1749475838905,-500.0,0.00019876,2]
[365120501,1749475838914,-500.0,0.00019876,2]
[365120502,1749475838923,-500.0,0.00019876,2]
[365120503,1749475838932,-500.0,0.00019876,2]
[365120504,1749475838941,-500.0,0.00019876,2]
[365120505,1749475838950,-500.0,0.00019876,2]
[365120506,1749475838960,-6301.5389854,0.00019877,2]
[365120507,1749475838969,-6301.5389854,0.00019889,2]
[365120508,1749475838978,-207.2095282,0.00019893,2]
[365120509,1749475838988,-7974.3191,0.00019896,2]
[365120510,1749475838997,-19385.77897154,0.00019896,2]
[365120511,1749475839006,-19385.77897149,0.00019896,2]
[365120512,1749475839015,-19385.77897149,0.00019897,2]
[365120513,1749475839024,-500.0,0.00019897,2]
[365120514,1749475839034,-19385.77897149,0.00019897,2]
[365120515,1749475839047,-19385.77897149,0.00019898,2]
[365120516,1749475839057,-19385.77897149,0.00019898,2]
[365120517,1749475839066,-19385.77897149,0.00019899,2]
[365120518,1749475839077,-19385.77897149,0.00019899,2]
[365120519,1749475839090,-19385.77897149,0.000199,2]
[365120520,1749475839099,-2500.0,0.000199,2]
[365120521,1749475839108,-2500.0,0.000199,2]
[365120522,1749475839117,-19385.77897149,0.000199,2]
[365120523,1749475839127,-6301.5389854,0.000199,2]
[365120524,1749475839137,-78298.72150623,0.000199,2]
[365120525,1749475839146,-200.40811192,0.000199,2]
[365120526,1749475839155,-6404.87239877,0.000199,2]
[365120527,1749475839164,-35126.65907264,0.000199,2]
[365120528,1749475839175,-175.386,0.0001991,2]
[365120529,1749475839185,-1909.067,0.00019932,2]
[365120531,1749475839195,-500.0,0.00019965,2]
[365120532,1749475839205,-150.0,0.00019965,2]
[365120533,1749475839215,-500.0,0.00019965,2]
[365120534,1749475839227,-150.0,0.00019965,2]
[365120535,1749475839237,-500.0,0.00019965,2]
[365120536,1749475839247,-150.0,0.00019965,2]
[365120537,1749475839258,-150.0,0.00019965,2]
[365120539,1749475839268,-150.0,0.00019965,2]
[365120540,1749475839278,-150.0,0.00019965,2]
[365120541,1749475839288,-150.0,0.00019965,2]
[365120542,1749475839299,-150.0,0.00019965,2]
[365120543,1749475839309,-500.0,0.00019965,2]
[365120544,1749475839320,-500.0,0.00019965,2]
[365120545,1749475839331,-150.0,0.00019965,2]
[365120546,1749475839341,-500.0,0.00019973,2]
[365120547,1749475839351,-500.0,0.00019973,2]
[365120548,1749475839361,-175.82066896,0.00019973,2]
[365120549,1749475839371,-640.79342162,0.00019973,2]
[365120550,1749475839381,-500.0,0.00019973,2]
[365120551,1749475839390,-500.0,0.00019973,2]
[365120552,1749475839400,-500.0,0.00019973,2]
[365120553,1749475839409,-500.0,0.00019973,2]
[365120554,1749475839418,-500.0,0.00019973,2]
[365120555,1749475839428,-500.0,0.00019973,2]
[365120556,1749475839437,-500.0,0.00019973,2]
[365120557,1749475839446,-502.91236962,0.00019973,2]
[365120558,1749475839456,-526.71063269,0.00019973,2]
[365120559,1749475839466,-317.2465053,0.00019973,2]
[365120560,1749475839475,-500.0,0.00019973,2]
[365120562,1749475839487,-500.0,0.00019973,2]
[365120564,1749475839498,-503.52799915,0.00019973,2]
[365120567,1749475839508,-500.0,0.00019973,2]
[365120569,1749475839518,-153.48794867,0.00019973,2]
[365120572,1749475839528,-500.0,0.00019973,2]
[365120573,1749475839538,-508.67689924,0.00019973,2]
[365120574,1749475839548,-499.99,0.00019979,2]
[365120575,1749475839558,-158.31,0.0001999,2]
[365120576,1749475839569,-158.31,0.0001999,2]
[365120577,1749475839578,-213.47102298,0.0001999,2]
[365120578,1749475839590,-500.0,0.00019992,2]
[365120579,1749475839601,-200.0,0.00019992,2]
[365120580,1749475839611,-500.0,0.00019992,2]
[365120581,1749475839621,-200.0,0.00019992,2]
[365120582,1749475839631,-500.0,0.00019992,2]
[365120583,1749475839641,-200.0,0.00019992,2]
[365120584,1749475839651,-150.0,0.00019992,2]
[365120585,1749475839660,-200.0,0.00019992,2]
[365120586,1749475839670,-150.0,0.00019992,2]
[365120587,1749475839680,-500.0,0.00019992,2]
[365120588,1749475839691,-500.0,0.00019992,2]
[365120589,1749475839701,-150.0,0.00019992,2]
[365120590,1749475839711,-23100.642387,0.00019993,2]
[365120591,1749475839722,-812.9093819,0.00019993,2]
[365120592,1749475839732,-167114.5774694,0.00019993,2]
[365120593,1749475839743,-1774.748823,0.00019993,2]
[365120594,1749475839753,-31742.157995,0.00019993,2]
[365120595,1749475839764,-6886.1522141,0.00019993,2]
[365120596,1749475839775,-1750.01,0.00019995,2]
[365120597,1749475839785,-500.0,0.00019995,2]
[365120598,1749475839795,-669.40882155,0.00019999,2]
[365120599,1749475839805,-300.0,0.00019999,2]
[365120600,1749475839815,-666.0,0.00019999,2]
[365120601,1749475839825,-300.0,0.00019999,2]
[365120602,1749475839834,-300.0,0.00019999,2]
[365120603,1749475839844,-2000.0,0.00019999,2]
[365120604,1749475839854,-2000.0,0.00019999,2]
[365120605,1749475839864,-2000.0,0.00019999,2]